[Event "MČR v bleskovém šachu družstev 2019"]
[Site "Teplice, Czech Republic"]
[Date "2019.09.14"]
[Round "13.24"]
[White "Krejci, Jan"]
[Black "Duran, Tomas"]
[Result "1-0"]
[TimeControl "3 mim. + 2 s"]
[WhiteFideId "316873"]
[WhiteElo "2048"]
[BlackElo "2135"]

1. Nf3 {[%clk 00:03:03]} Nf6 {[%clk 00:03:02]} {[%emt 00:00:02]} 2. c4 {[%clk
00:03:04]} {[%emt 00:00:01]} g6 {[%clk 00:03:03]} {[%emt 00:00:01]} 3. b4
{[%clk 00:03:05]} {[%emt 00:00:01]} Bg7 {[%clk 00:03:04]} 4. Bb2 {[%clk
00:03:06]} O-O {[%clk 00:03:04]} {[%emt 00:00:02]} 5. g3 {[%clk 00:03:08]}
{[%emt 00:00:01]} d6 {[%clk 00:03:03]} {[%emt 00:00:02]} 6. Bg2 {[%clk
00:03:09]} {[%emt 00:00:01]} c6 {[%clk 00:03:02]} {[%emt 00:00:03]} 7. O-O
{[%clk 00:03:09]} {[%emt 00:00:02]} e5 {[%clk 00:02:59]} {[%emt 00:00:04]} 8.
d3 {[%clk 00:03:10]} {[%emt 00:00:01]} h6 {[%clk 00:02:57]} {[%emt 00:00:05]} 9.
Nbd2 {[%clk 00:03:10]} {[%emt 00:00:02]} Be6 {[%clk 00:02:56]} {[%emt
00:00:03]} 10. a4 {[%clk 00:03:10]} {[%emt 00:00:02]} a5 {[%clk 00:02:54]}
{[%emt 00:00:03]} 11. b5 {[%clk 00:03:11]} {[%emt 00:00:02]} Qc7 {[%clk
00:02:46]} {[%emt 00:00:10]} 12. Qc2 {[%clk 00:03:02]} {[%emt 00:00:11]} Re8
{[%clk 00:02:46]} {[%emt 00:00:02]} 13. Bc3 {[%clk 00:02:58]} {[%emt 00:00:07]}
Nbd7 {[%clk 00:02:44]} {[%emt 00:00:03]} 14. Nb3 {[%clk 00:02:58]} {[%emt
00:00:02]} c5 {[%clk 00:02:10]} {[%emt 00:00:37]} 15. Nfd2 {[%clk 00:02:49]}
{[%emt 00:00:10]} Ra7 {[%clk 00:02:09]} {[%emt 00:00:02]} 16. e3 {[%clk
00:02:37]} {[%emt 00:00:15]} b6 {[%clk 00:02:04]} {[%emt 00:00:07]} 17. Rac1
{[%clk 00:02:35]} {[%emt 00:00:03]} Nf8 {[%clk 00:02:01]} {[%emt 00:00:06]} 18.
Qb2 {[%clk 00:02:35]} {[%emt 00:00:02]} Bf5 {[%clk 00:01:59]} {[%emt 00:00:04]}
19. d4 {[%clk 00:02:18]} {[%emt 00:00:19]} exd4 {[%clk 00:01:53]} {[%emt
00:00:08]} 20. exd4 {[%clk 00:02:18]} {[%emt 00:00:02]} Qd8 {[%clk 00:01:38]}
{[%emt 00:00:17]} 21. Bc6 {[%clk 00:02:08]} {[%emt 00:00:12]} Re2 {[%clk
00:01:38]} {[%emt 00:00:02]} 22. Bf3 {[%clk 00:02:08]} {[%emt 00:00:02]} Re8
{[%clk 00:01:34]} {[%emt 00:00:05]} 23. Rfe1 {[%clk 00:02:04]} {[%emt
00:00:07]} Rae7 {[%clk 00:01:35]} 24. Rxe7 {[%clk 00:01:50]} Rxe7 {[%clk
00:01:38]} 25. dxc5 {[%clk 00:01:48]} {[%emt 00:00:07]} dxc5 {[%clk 00:01:39]}
{[%emt 00:00:01]} 26. Bxf6 {[%clk 00:01:46]} {[%emt 00:00:04]} Bxf6 {[%clk
00:01:38]} {[%emt 00:00:03]} 27. Qa2 {[%clk 00:01:33]} {[%emt 00:00:14]} Qd3
{[%clk 00:01:26]} {[%emt 00:00:15]} 28. Bg2 {[%clk 00:01:26]} {[%emt 00:00:10]}
Nd7 {[%clk 00:01:12]} {[%emt 00:00:16]} 29. Bf1 {[%clk 00:01:26]} {[%emt
00:00:01]} Qd6 {[%clk 00:01:09]} {[%emt 00:00:05]} 30. Nf3 {[%clk 00:01:17]}
{[%emt 00:00:11]} Bg4 {[%clk 00:01:03]} {[%emt 00:00:08]} 31. Nbd2 {[%clk
00:01:12]} {[%emt 00:00:07]} Ne5 {[%clk 00:01:00]} {[%emt 00:00:05]} 32. Nxe5
{[%clk 00:01:08]} {[%emt 00:00:06]} Rxe5 {[%clk 00:00:58]} {[%emt 00:00:03]} 33.
Qc2 {[%clk 00:00:46]} {[%emt 00:00:24]} Bf5 {[%clk 00:00:56]} {[%emt 00:00:05]}
34. Qd1 {[%clk 00:00:44]} {[%emt 00:00:04]} Re8 {[%clk 00:00:42]} {[%emt
00:00:16]} 35. Nf3 {[%clk 00:00:42]} {[%emt 00:00:04]} Qe6 {[%clk 00:00:38]}
{[%emt 00:00:06]} 36. Bd3 {[%clk 00:00:39]} {[%emt 00:00:05]} Bg4 {[%clk
00:00:38]} {[%emt 00:00:02]} 37. Kg2 {[%clk 00:00:39]} {[%emt 00:00:02]} Rd8
{[%clk 00:00:39]} {[%emt 00:00:02]} 38. Qe2 {[%clk 00:00:39]} {[%emt 00:00:02]}
Qd6 {[%clk 00:00:33]} {[%emt 00:00:08]} 39. Rd1 {[%clk 00:00:37]} {[%emt
00:00:03]} Qc7 {[%clk 00:00:24]} {[%emt 00:00:11]} 40. Qe4 {[%clk 00:00:34]}
{[%emt 00:00:04]} Bf5 {[%clk 00:00:24]} {[%emt 00:00:03]} 41. Qe2 {[%clk
00:00:34]} {[%emt 00:00:02]} Qd6 {[%clk 00:00:17]} {[%emt 00:00:10]} 42. Bc2
{[%clk 00:00:31]} {[%emt 00:00:05]} Qc7 {[%clk 00:00:15]} {[%emt 00:00:03]} 43.
Rxd8+ {[%clk 00:00:30]} {[%emt 00:00:03]} Qxd8 {[%clk 00:00:16]} {[%emt
00:00:01]} 44. Bxf5 {[%clk 00:00:31]} {[%emt 00:00:01]} gxf5 {[%clk 00:00:17]}
45. Qe3 {[%clk 00:00:30]} {[%emt 00:00:03]} Kg7 {[%clk 00:00:18]} {[%emt
00:00:02]} 46. Qf4 {[%clk 00:00:31]} {[%emt 00:00:02]} Qd7 {[%clk 00:00:18]}
{[%emt 00:00:02]} 47. h4 {[%clk 00:00:31]} Qe6 {[%clk 00:00:18]} {[%emt
00:00:02]} 48. Kh2 {[%clk 00:00:32]} {[%emt 00:00:02]} Qe4 {[%clk 00:00:18]}
{[%emt 00:00:01]} 49. Qxe4 {[%clk 00:00:29]} {[%emt 00:00:05]} fxe4 {[%clk
00:00:19]} 50. Nd2 {[%clk 00:00:29]} e3 {[%clk 00:00:19]} {[%emt 00:00:03]} 51.
fxe3 {[%clk 00:00:31]} {[%emt 00:00:01]} Bc3 {[%clk 00:00:20]} 52. Nf1 {[%clk
00:00:30]} {[%emt 00:00:02]} Kf6 {[%emt 00:00:02]} 53. Kg2 Kf5 {[%clk
00:00:23]} 54. Kf3 {[%clk 00:00:33]} h5 {[%clk 00:00:24]} 55. Nh2 {[%clk
00:00:33]} {[%emt 00:00:02]} Bb2 {[%clk 00:00:24]} {[%emt 00:00:03]} 56. e4+
{[%clk 00:00:34]} {[%emt 00:00:01]} Ke5 {[%clk 00:00:25]} 57. Ke3 {[%clk
00:00:35]} Bd4+ {[%clk 00:00:25]} {[%emt 00:00:01]} 58. Kd3 {[%clk 00:00:36]}
Bf2 {[%clk 00:00:27]} {[%emt 00:00:01]} 59. Nf1 {[%clk 00:00:37]} f6 {[%clk
00:00:27]} {[%emt 00:00:02]} 60. Ke2 {[%clk 00:00:37]} {[%emt 00:00:02]} Bd4
{[%clk 00:00:27]} {[%emt 00:00:01]} 61. Kf3 {[%clk 00:00:38]} Bc3 {[%clk
00:00:28]} {[%emt 00:00:01]} 62. Ne3 {[%clk 00:00:39]} {[%emt 00:00:01]} Be1
{[%clk 00:00:29]} 63. Nd5 {[%clk 00:00:40]} {[%emt 00:00:01]} f5 {[%clk
00:00:30]} {[%emt 00:00:02]} 64. exf5 {[%clk 00:00:41]} {[%emt 00:00:01]} Kxf5
{[%clk 00:00:31]} 65. Nxb6 {[%clk 00:00:42]} Ke5 {[%clk 00:00:31]} {[%emt
00:00:01]} 66. Nd7+ {[%clk 00:00:41]} {[%emt 00:00:03]} Kd6 {[%clk 00:00:32]}
67. Nf6 {[%clk 00:00:42]} Ke5 {[%clk 00:00:32]} {[%emt 00:00:02]} 68. Nxh5
{[%emt 00:00:02]} Kd4 {[%clk 00:00:34]} 69. Nf4 {[%clk 00:00:44]} {[%emt
00:00:01]} Kxc4 {[%clk 00:00:35]} {[%emt 00:00:01]} 70. h5 {[%clk 00:00:46]}
Bc3 {[%clk 00:00:35]} {[%emt 00:00:02]} 71. Ke4 {[%clk 00:00:47]} Bg7 {[%clk
00:00:35]} {[%emt 00:00:02]} 72. g4 {[%clk 00:00:48]} Bh6 {[%clk 00:00:37]}
{[%emt 00:00:01]} 73. Ne6 {[%clk 00:00:49]} Kb4 {[%clk 00:00:37]} {[%emt
00:00:02]} 74. g5 {[%clk 00:00:50]} Bxg5 {[%clk 00:00:36]} {[%emt 00:00:03]} 75.
Nxg5 {[%clk 00:00:51]} {[%emt 00:00:01]} c4 {[%clk 00:00:38]} 76. h6 {[%clk
00:00:52]} {[%emt 00:00:01]} c3 {[%clk 00:00:39]} 77. Kd3 {[%clk 00:00:54]} Kb3
{[%clk 00:00:41]} {[%emt 00:00:02]} 78. h7 {[%clk 00:00:55]} c2 {[%clk
00:00:42]} 79. h8=Q {[%clk 00:00:54]} {[%emt 00:00:05]} c1=Q {[%clk 00:00:43]}
{[%emt 00:00:01]} 80. Qg8+ {[%clk 00:00:52]} {[%emt 00:00:03]} Kxa4 {[%clk
00:00:43]} {[%emt 00:00:02]} 81. Qc4+ {[%clk 00:00:53]} {[%emt 00:00:01]} Qxc4+
{[%emt 00:00:03]} 82. Kxc4 {[%clk 00:00:54]} Ka3 {[%clk 00:00:43]} {[%emt
00:00:02]} 83. b6 {[%clk 00:00:56]} Kb2 {[%clk 00:00:45]} 84. b7 {[%clk
00:00:57]} Kc2 {[%clk 00:00:45]} {[%emt 00:00:02]} 85. b8=Q {[%clk 00:00:57]}
{[%emt 00:00:02]} 1-0

[Event "MČR v bleskovém šachu družstev 2019"]
[Site "Teplice, Czech Republic"]
[Date "2019.09.14"]
[Round "13.25"]
[White "Zeman, Matyas"]
[Black "Babicka, Michal"]
[Result "1-0"]
[TimeControl "3 mim. + 2 s"]
[WhiteFideId "364398"]
[WhiteElo "2094"]
[BlackElo "2076"]

1. d4 {[%clk 00:03:02]} {[%emt 00:00:01]} Nf6 {[%clk 00:03:03]} 2. Nc3 {[%clk
00:03:04]} d5 {[%clk 00:02:57]} {[%emt 00:00:08]} 3. Bf4 {[%clk 00:03:04]} g6
{[%clk 00:02:58]} {[%emt 00:00:02]} 4. e3 {[%clk 00:03:06]} {[%emt 00:00:01]}
Bg7 {[%clk 00:02:59]} 5. h4 {[%clk 00:03:07]} h5 {[%clk 00:03:00]} {[%emt
00:00:02]} 6. Nf3 {[%clk 00:03:07]} {[%emt 00:00:03]} Bg4 {[%clk 00:02:49]}
{[%emt 00:00:12]} 7. Qd2 {[%clk 00:03:08]} {[%emt 00:00:01]} O-O {[%clk
00:02:45]} {[%emt 00:00:07]} 8. Ne5 {[%clk 00:03:06]} {[%emt 00:00:03]} Be6
{[%clk 00:02:37]} {[%emt 00:00:10]} 9. Be2 {[%clk 00:03:03]} {[%emt 00:00:06]}
Nbd7 {[%clk 00:02:35]} {[%emt 00:00:03]} 10. f3 {[%clk 00:02:49]} {[%emt
00:00:17]} Nxe5 {[%clk 00:02:01]} {[%emt 00:00:35]} 11. Bxe5 {[%clk 00:02:49]}
{[%emt 00:00:02]} Nd7 {[%clk 00:02:02]} 12. Bxg7 {[%clk 00:02:48]} {[%emt
00:00:03]} Kxg7 {[%clk 00:02:03]} 13. e4 {[%clk 00:02:49]} dxe4 {[%clk
00:01:37]} {[%emt 00:00:30]} 14. d5 {[%clk 00:02:51]} Bf5 {[%clk 00:01:38]}
{[%emt 00:00:02]} 15. fxe4 {[%clk 00:02:50]} {[%emt 00:00:02]} Bg4 {[%clk
00:01:39]} 16. Bxg4 {[%clk 00:02:41]} {[%emt 00:00:12]} hxg4 {[%clk 00:01:40]}
{[%emt 00:00:01]} 17. h5 {[%clk 00:02:42]} Rh8 {[%clk 00:01:41]} {[%emt
00:00:01]} 18. O-O-O {[%clk 00:02:41]} {[%emt 00:00:03]} Ne5 {[%clk 00:01:40]}
{[%emt 00:00:03]} 19. hxg6 {[%clk 00:02:36]} {[%emt 00:00:08]} Kxg6 {[%clk
00:01:27]} {[%emt 00:00:14]} 20. Qf4 {[%clk 00:02:35]} {[%emt 00:00:02]} f6
{[%clk 00:01:29]} {[%emt 00:00:02]} 21. Qf5+ {[%clk 00:02:20]} {[%emt
00:00:16]} Kg7 {[%clk 00:01:30]} {[%emt 00:00:01]} 22. Nb5 {[%clk 00:02:21]}
Qd7 {[%clk 00:01:18]} {[%emt 00:00:14]} 23. Qxd7 {[%clk 00:02:13]} {[%emt
00:00:10]} Nxd7 {[%clk 00:01:19]} {[%emt 00:00:01]} 24. Nxc7 {[%clk 00:02:14]}
{[%emt 00:00:02]} Rac8 {[%clk 00:01:17]} {[%emt 00:00:03]} 25. Ne6+ {[%clk
00:02:07]} {[%emt 00:00:09]} Kg6 {[%clk 00:01:16]} {[%emt 00:00:03]} 26. Nf4+
{[%clk 00:01:45]} {[%emt 00:00:24]} Kf7 {[%clk 00:00:54]} {[%emt 00:00:24]} 27.
Nd3 {[%clk 00:01:39]} {[%emt 00:00:08]} b6 {[%clk 00:00:50]} {[%emt 00:00:07]}
28. Kd2 {[%clk 00:01:34]} {[%emt 00:00:06]} Kg6 {[%clk 00:00:30]} {[%emt
00:00:22]} 29. c3 {[%clk 00:01:31]} {[%emt 00:00:05]} Rxh1 {[%clk 00:00:07]}
{[%emt 00:00:24]} 30. Rxh1 {[%clk 00:01:33]} {[%emt 00:00:01]} Rc4 {[%clk
00:00:08]} {[%emt 00:00:02]} 31. Ke3 {[%clk 00:01:29]} {[%emt 00:00:05]} a5
{[%clk 00:00:08]} {[%emt 00:00:02]} 32. Rh8 {[%clk 00:01:18]} {[%emt 00:00:13]}
b5 {[%clk 00:00:07]} {[%emt 00:00:03]} 33. Rd8 {[%clk 00:01:04]} {[%emt
00:00:16]} Nb6 {[%clk 00:00:05]} {[%emt 00:00:05]} 34. Rb8 {[%clk 00:01:01]}
{[%emt 00:00:04]} Nd7 {[%clk 00:00:00]} {[%emt 00:00:06]} 1-0

[Event "MČR v bleskovém šachu družstev 2019"]
[Site "Teplice, Czech Republic"]
[Date "2019.09.14"]
[Round "13.26"]
[White "Mach, Petr"]
[Black "Svanda, Ondrej"]
[Result "1/2-1/2"]
[TimeControl "3 mim. + 2 s"]
[BlackTitle "FM"]
[BlackFideId "359670"]
[WhiteElo "1961"]
[BlackElo "1924"]

1. Nf3 {[%clk 00:03:03]} c5 {[%clk 00:03:03]} {[%emt 00:00:02]} 2. g3 {[%clk
00:03:02]} {[%emt 00:00:02]} Nc6 {[%clk 00:03:03]} {[%emt 00:00:02]} 3. d4
{[%clk 00:03:00]} {[%emt 00:00:04]} cxd4 {[%clk 00:03:01]} {[%emt 00:00:04]} 4.
Nxd4 {[%clk 00:03:01]} {[%emt 00:00:01]} g6 {[%clk 00:02:58]} {[%emt 00:00:05]}
5. Bg2 {[%clk 00:03:00]} {[%emt 00:00:03]} Bg7 {[%clk 00:02:59]} {[%emt
00:00:01]} 6. Nxc6 {[%clk 00:02:55]} {[%emt 00:00:07]} bxc6 {[%clk 00:03:00]}
{[%emt 00:00:02]} 7. O-O {[%clk 00:02:55]} {[%emt 00:00:01]} Nf6 {[%clk
00:03:01]} {[%emt 00:00:01]} 8. c4 {[%clk 00:02:55]} O-O {[%clk 00:03:01]}
{[%emt 00:00:03]} 9. Nc3 {[%clk 00:02:57]} Qc7 {[%clk 00:02:56]} {[%emt
00:00:07]} 10. Qc2 {[%clk 00:02:42]} {[%emt 00:00:17]} d6 {[%clk 00:02:54]}
{[%emt 00:00:04]} 11. e4 {[%clk 00:02:39]} {[%emt 00:00:05]} e5 {[%clk
00:02:50]} {[%emt 00:00:05]} 12. h3 {[%clk 00:02:36]} {[%emt 00:00:06]} Be6
{[%clk 00:02:47]} {[%emt 00:00:05]} 13. b3 {[%clk 00:02:36]} {[%emt 00:00:02]}
Nd7 {[%clk 00:02:38]} {[%emt 00:00:10]} 14. Be3 {[%clk 00:02:35]} {[%emt
00:00:03]} f5 {[%clk 00:02:31]} {[%emt 00:00:10]} 15. f4 {[%clk 00:02:23]}
{[%emt 00:00:14]} Nf6 {[%clk 00:01:59]} {[%emt 00:00:33]} 16. fxe5 {[%clk
00:02:14]} {[%emt 00:00:11]} dxe5 {[%clk 00:02:00]} {[%emt 00:00:01]} 17. Rad1
{[%clk 00:02:05]} {[%emt 00:00:11]} Nh5 {[%clk 00:01:43]} {[%emt 00:00:20]} 18.
Kh2 {[%clk 00:01:39]} {[%emt 00:00:27]} f4 {[%clk 00:01:40]} {[%emt 00:00:06]}
19. Bf2 {[%clk 00:01:32]} {[%emt 00:00:09]} fxg3+ {[%clk 00:01:29]} {[%emt
00:00:12]} 20. Bxg3 {[%clk 00:01:33]} {[%emt 00:00:02]} Nxg3 {[%clk 00:01:30]}
21. Kxg3 {[%clk 00:01:34]} Bh6 {[%clk 00:01:32]} 22. Kh2 {[%clk 00:01:29]}
{[%emt 00:00:07]} Bf4+ {[%clk 00:01:33]} {[%emt 00:00:01]} 23. Kh1 {[%clk
00:01:30]} {[%emt 00:00:01]} Rad8 {[%clk 00:01:34]} 24. Ne2 {[%clk 00:01:27]}
{[%emt 00:00:04]} Bg5 {[%clk 00:01:31]} {[%emt 00:00:05]} 25. Rxd8 {[%clk
00:01:17]} {[%emt 00:00:12]} Qxd8 {[%clk 00:01:25]} {[%emt 00:00:08]} 26. Rxf8+
{[%clk 00:00:53]} {[%emt 00:00:27]} Qxf8 {[%clk 00:01:25]} {[%emt 00:00:02]} 27.
Qd1 {[%clk 00:00:54]} Qa3 {[%clk 00:00:53]} {[%emt 00:00:34]} 28. Qc2 {[%clk
00:00:52]} {[%emt 00:00:04]} Qc5 {[%clk 00:00:51]} {[%emt 00:00:04]} 29. Qd3
{[%clk 00:00:42]} {[%emt 00:00:12]} Qa3 {[%clk 00:00:34]} {[%emt 00:00:20]} 30.
Qc2 {[%clk 00:00:43]} {[%emt 00:00:01]} Qd6 {[%clk 00:00:34]} {[%emt 00:00:01]}
31. c5 {[%clk 00:00:29]} {[%emt 00:00:16]} Qd7 {[%clk 00:00:32]} {[%emt
00:00:05]} 32. Kh2 {[%clk 00:00:25]} {[%emt 00:00:06]} h5 {[%clk 00:00:15]}
{[%emt 00:00:18]} 33. Qc3 {[%clk 00:00:26]} Bf6 {[%clk 00:00:16]} {[%emt
00:00:01]} 34. Qf3 {[%clk 00:00:18]} {[%emt 00:00:10]} Kg7 {[%clk 00:00:16]}
{[%emt 00:00:03]} 35. Qc3 {[%clk 00:00:12]} {[%emt 00:00:08]} h4 {[%clk
00:00:12]} {[%emt 00:00:06]} 36. a3 {[%clk 00:00:08]} {[%emt 00:00:05]} g5
{[%clk 00:00:07]} {[%emt 00:00:08]} 37. b4 {[%clk 00:00:03]} {[%emt 00:00:06]}
g4 {[%clk 00:00:08]} {[%emt 00:00:01]} 38. hxg4 {[%clk 00:00:04]} {[%emt
00:00:02]} Bxg4 {[%clk 00:00:09]} {[%emt 00:00:01]} 39. Qe3 {[%clk 00:00:05]}
Kg6 {[%clk 00:00:08]} {[%emt 00:00:03]} 40. Bf3 {[%clk 00:00:06]} Bg5 {[%clk
00:00:06]} {[%emt 00:00:04]} 41. Qf2 {[%clk 00:00:06]} {[%emt 00:00:01]} Bxf3
{[%clk 00:00:05]} {[%emt 00:00:03]} 42. Qxf3 {[%clk 00:00:07]} {[%emt
00:00:01]} Qe6 {[%clk 00:00:05]} {[%emt 00:00:02]} 43. Kg2 {[%clk 00:00:05]}
{[%emt 00:00:05]} Qa2 {[%clk 00:00:04]} {[%emt 00:00:02]} 44. Kh3 {[%clk
00:00:05]} {[%emt 00:00:03]} Qe6+ {[%clk 00:00:04]} {[%emt 00:00:02]} 45. Kg2
{[%clk 00:00:06]} Qa2 {[%clk 00:00:05]} {[%emt 00:00:01]} 46. Kh3 {[%clk
00:00:04]} {[%emt 00:00:04]} Qe6+ {[%clk 00:00:06]} {[%emt 00:00:01]} 47. Kg2
{[%clk 00:00:04]} {[%emt 00:00:02]} 1/2-1/2

[Event "MČR v bleskovém šachu družstev 2019"]
[Site "Teplice, Czech Republic"]
[Date "2019.09.14"]
[Round "13.27"]
[White "Skacelik, Petr"]
[Black "Popper, Tomas"]
[Result "0-1"]
[TimeControl "3 mim. + 2 s"]
[WhiteFideId "307904"]
[WhiteElo "2078"]
[BlackElo "2088"]

1. d4 {[%clk 00:03:02]} {[%emt 00:00:02]} Nf6 {[%clk 00:03:03]} {[%emt
00:00:02]} 2. c4 {[%clk 00:03:03]} c5 {[%clk 00:03:04]} {[%emt 00:00:02]} 3. d5
{[%clk 00:03:05]} {[%emt 00:00:01]} b5 {[%clk 00:03:05]} 4. cxb5 {[%clk
00:03:06]} {[%emt 00:00:01]} a6 {[%clk 00:03:07]} 5. f3 {[%clk 00:03:07]} e6
{[%clk 00:03:08]} 6. e4 {[%clk 00:03:08]} {[%emt 00:00:02]} exd5 {[%clk
00:03:09]} {[%emt 00:00:01]} 7. e5 {[%clk 00:03:09]} Ng8 {[%clk 00:03:08]}
{[%emt 00:00:03]} 8. Qxd5 {[%clk 00:03:06]} {[%emt 00:00:05]} Ra7 {[%clk
00:03:08]} {[%emt 00:00:01]} 9. Nc3 {[%clk 00:03:05]} {[%emt 00:00:04]} Bb7
{[%clk 00:03:04]} {[%emt 00:00:06]} 10. Qd1 {[%clk 00:03:05]} {[%emt 00:00:02]}
d5 {[%clk 00:02:58]} {[%emt 00:00:08]} 11. exd6 {[%clk 00:03:05]} {[%emt
00:00:02]} Bxd6 {[%clk 00:02:59]} {[%emt 00:00:01]} 12. Bc4 {[%clk 00:03:01]}
{[%emt 00:00:05]} Ne7 {[%clk 00:02:57]} {[%emt 00:00:04]} 13. Nge2 {[%clk
00:03:01]} {[%emt 00:00:03]} O-O {[%clk 00:02:57]} {[%emt 00:00:02]} 14. O-O
{[%clk 00:02:56]} {[%emt 00:00:06]} Nf5 {[%clk 00:02:44]} {[%emt 00:00:15]} 15.
Ne4 {[%clk 00:02:53]} {[%emt 00:00:05]} Be7 {[%clk 00:02:32]} {[%emt 00:00:14]}
16. Qxd8 {[%clk 00:02:41]} {[%emt 00:00:15]} Rxd8 {[%clk 00:02:33]} {[%emt
00:00:01]} 17. Bf4 {[%clk 00:02:39]} {[%emt 00:00:04]} axb5 {[%clk 00:02:22]}
{[%emt 00:00:14]} 18. Bxb5 {[%clk 00:02:36]} {[%emt 00:00:04]} Nd4 {[%clk
00:02:12]} {[%emt 00:00:12]} 19. Nxd4 {[%clk 00:02:33]} {[%emt 00:00:05]} cxd4
{[%clk 00:02:13]} {[%emt 00:00:01]} 20. Rfd1 {[%clk 00:02:26]} {[%emt
00:00:09]} Bxe4 {[%clk 00:01:23]} {[%emt 00:00:52]} 21. fxe4 {[%clk 00:02:26]}
{[%emt 00:00:02]} Nd7 {[%clk 00:01:23]} {[%emt 00:00:02]} 22. Kf1 {[%clk
00:02:17]} {[%emt 00:00:10]} Nf6 {[%clk 00:01:23]} {[%emt 00:00:02]} 23. Bd3
{[%clk 00:02:15]} {[%emt 00:00:04]} Ng4 {[%clk 00:01:14]} {[%emt 00:00:10]} 24.
Ke2 {[%clk 00:02:04]} {[%emt 00:00:14]} g5 {[%clk 00:01:11]} {[%emt 00:00:06]}
25. Bg3 {[%clk 00:02:05]} Ne3 {[%clk 00:01:12]} {[%emt 00:00:01]} 26. Rg1
{[%clk 00:01:56]} {[%emt 00:00:08]} f6 {[%clk 00:00:59]} {[%emt 00:00:17]} 27.
Bf2 {[%clk 00:01:45]} {[%emt 00:00:12]} Rb8 {[%clk 00:00:56]} {[%emt 00:00:07]}
28. b3 {[%clk 00:01:46]} {[%emt 00:00:02]} Rc7 {[%clk 00:00:56]} {[%emt
00:00:01]} 29. Bxe3 {[%clk 00:01:40]} {[%emt 00:00:08]} dxe3 {[%clk 00:00:57]}
30. Rgc1 {[%clk 00:01:40]} {[%emt 00:00:02]} Bd6 {[%clk 00:00:51]} {[%emt
00:00:09]} 31. Rxc7 Bxc7 {[%clk 00:00:52]} 32. h3 {[%clk 00:01:37]} Bf4 {[%clk
00:00:48]} {[%emt 00:00:05]} 33. Rc1 {[%clk 00:01:34]} {[%emt 00:00:06]} Kf7
{[%clk 00:00:34]} {[%emt 00:00:16]} 34. g3 {[%clk 00:01:23]} {[%emt 00:00:13]}
Bxg3 {[%clk 00:00:35]} {[%emt 00:00:02]} 35. Rc6 {[%clk 00:01:18]} {[%emt
00:00:06]} Bf4 {[%clk 00:00:33]} {[%emt 00:00:04]} 36. Ra6 {[%clk 00:01:18]}
{[%emt 00:00:02]} h5 {[%clk 00:00:34]} {[%emt 00:00:01]} 37. Bc4+ {[%clk
00:01:17]} {[%emt 00:00:03]} Kg6 {[%clk 00:00:33]} {[%emt 00:00:02]} 38. Bd3
{[%clk 00:01:18]} {[%emt 00:00:01]} Kf7 {[%clk 00:00:34]} 39. Ra7+ {[%clk
00:01:19]} {[%emt 00:00:02]} Ke6 {[%clk 00:00:36]} 40. Bc4+ {[%clk 00:01:18]}
{[%emt 00:00:04]} Ke5 {[%clk 00:00:35]} {[%emt 00:00:02]} 41. Kd3 {[%clk
00:01:12]} {[%emt 00:00:06]} Rd8+ {[%clk 00:00:35]} {[%emt 00:00:04]} 42. Bd5
{[%clk 00:01:13]} Re8 {[%clk 00:00:30]} {[%emt 00:00:07]} 43. b4 {[%clk
00:01:14]} g4 {[%clk 00:00:30]} {[%emt 00:00:02]} 44. hxg4 {[%clk 00:01:15]}
{[%emt 00:00:01]} hxg4 {[%clk 00:00:32]} {[%emt 00:00:01]} 45. Rg7 {[%clk
00:01:15]} {[%emt 00:00:02]} g3 {[%clk 00:00:32]} {[%emt 00:00:01]} 46. a4
{[%clk 00:01:15]} {[%emt 00:00:03]} f5 {[%clk 00:00:33]} 47. b5 {[%clk
00:01:12]} {[%emt 00:00:06]} fxe4+ {[%clk 00:00:32]} {[%emt 00:00:03]} 48. Bxe4
{[%clk 00:01:08]} {[%emt 00:00:06]} Rd8+ {[%clk 00:00:33]} 49. Ke2 {[%clk
00:01:09]} {[%emt 00:00:02]} Kxe4 {[%clk 00:00:34]} {[%emt 00:00:01]} 50. b6
{[%clk 00:01:10]} {[%emt 00:00:02]} Rd2+ {[%clk 00:00:35]} 51. Ke1 {[%clk
00:01:11]} Rb2 {[%clk 00:00:32]} {[%emt 00:00:05]} 52. a5 {[%clk 00:01:12]} g2
{[%clk 00:00:32]} {[%emt 00:00:02]} 53. Rg6 {[%clk 00:01:09]} {[%emt 00:00:04]}
Kf3 {[%clk 00:00:32]} {[%emt 00:00:03]} 54. a6 {[%clk 00:01:09]} {[%emt
00:00:02]} Rb1# {[%emt 00:00:02]} 0-1